bitfinex/quotes_BTCUSD_20220115
["timestamp","ask_amount","ask_price","bid_price","bid_amount"]
[1642283494149,0.433482,43249.0,43238.0,0.25579196]
[1642283494351,0.1489943,43248.0,43238.0,0.25579196]
[1642283494548,0.1489943,43248.0,43239.0,0.00015471]
[1642283495147,0.1489943,43248.0,43241.0,0.18116535]
[1642283495548,0.1489943,43248.0,43242.0,0.00010314]
[1642283495749,0.057797,43247.0,43242.0,0.00053644]
[1642283495950,0.109597,43247.0,43242.0,0.00053644]
[1642283496150,0.109597,43247.0,43243.0,8.595e-05]
[1642283496350,0.37569,43246.0,43243.0,8.595e-05]
[1642283496599,0.22022902,43245.0,43243.0,8.595e-05]
[1642283496799,2.4432687,43244.0,43243.0,8.595e-05]
[1642283497004,2.49631055,43244.0,43243.0,8.595e-05]
[1642283497301,0.93117938,43244.0,43243.0,8.595e-05]
[1642283497499,0.057807,43242.0,43238.0,0.25579196]
[1642283497701,0.20527312,43241.0,43238.0,0.25579196]
[1642283497902,0.20527312,43241.0,43239.0,6.876e-05]
[1642283498102,0.85,43240.0,43239.0,6.876e-05]
[1642283498303,0.9018,43240.0,43239.0,6.876e-05]
[1642283498501,0.0518,43240.0,43239.0,6.876e-05]
[1642283499113,0.0518,43240.0,43238.0,0.21116072]
[1642283499302,0.0518,43240.0,43238.0,0.20028]
[1642283499505,0.0518,43240.0,43239.0,0.2014436]
[1642283500346,0.0518,43240.0,43238.0,0.23347634]
[1642283501749,0.2818,43240.0,43238.0,0.23347634]
[1642283502853,0.2818,43240.0,43238.0,0.20028]
[1642283503151,0.2818,43240.0,43238.0,0.23157788]
[1642283503650,0.14956466,43239.0,43238.0,0.23157788]
[1642283503852,0.20136466,43239.0,43238.0,0.23157788]
[1642283504100,0.0518,43239.0,43238.0,0.18687788]
[1642283504309,0.0518,43239.0,43236.0,0.00043046]
[1642283504310,1.5,43238.0,43236.0,0.00043046]
[1642283504605,0.60970534,43237.0,43236.0,0.00043046]
[1642283504805,0.60970534,43237.0,43236.0,0.0160794]
[1642283505202,0.60970534,43237.0,43236.0,0.01564894]
[1642283505402,0.60970534,43237.0,43235.0,0.010348]
[1642283505604,0.1528536,43236.0,43235.0,0.010348]
[1642283505803,0.2046536,43236.0,43235.0,0.02710222]
[1642283506002,0.2046536,43236.0,43235.0,0.02717098]
[1642283506606,0.5803436,43236.0,43235.0,0.00116876]
[1642283506803,0.73638259,43236.0,43235.0,0.00116876]
[1642283507506,2.07569,43235.0,43230.0,0.0011]
[1642283507754,0.109617,43234.0,43233.0,0.00043051]
[1642283507952,0.93654158,43234.0,43233.0,0.00043051]
[1642283508153,0.58654158,43234.0,43233.0,0.00043051]
[1642283508655,0.73997403,43234.0,43233.0,0.00043051]
[1642283508854,0.73997403,43234.0,43231.0,6.876e-05]
[1642283509054,1.05,43232.0,43228.0,0.25151814]
[1642283509255,0.42749,43231.0,43228.0,0.25151814]
[1642283509456,0.0518,43230.0,43228.0,0.25151814]
[1642283510953,0.05781,43231.0,43228.0,0.25151814]
[1642283512300,0.28781,43231.0,43228.0,0.25151814]
[1642283512504,0.23,43231.0,43229.0,0.21041457]
[1642283512706,0.23,43231.0,43229.0,0.00586661]
[1642283512899,0.23,43231.0,43230.0,1.95586661]
[1642283514101,0.23,43231.0,43228.0,0.25821707]
[1642283514102,0.23,43231.0,43228.0,0.25194581]
[1642283514600,0.23,43231.0,43230.0,2.55]
[1642283515003,0.23,43231.0,43230.0,2.65]
[1642283515854,0.23,43231.0,43230.0,3.04791137]
[1642283516855,0.23,43231.0,43230.0,1.24791137]
[1642283517254,0.23,43231.0,43230.0,1.14791137]
[1642283517455,0.23,43231.0,43230.0,1.24791137]
[1642283518559,0.23,43231.0,43230.0,1.24799011]
[1642283518995,0.23,43231.0,43230.0,2.09799011]
[1642283519397,0.23,43231.0,43230.0,1.99799011]
[1642283519998,0.23,43231.0,43230.0,1.14799011]
[1642283520798,0.23,43231.0,43230.0,0.39799011]
[1642283521598,0.23,43231.0,43230.0,0.48179452]
[1642283521898,0.14322802,43231.0,43230.0,2.59806776]
[1642283522298,0.14322802,43231.0,43230.0,0.64806776]
[1642283522746,0.09438453,43231.0,43230.0,2.18179452]
[1642283523047,0.09438453,43231.0,43230.0,0.64589336]
[1642283523544,0.09438453,43231.0,43230.0,0.48179452]
[1642283523944,0.09438453,43231.0,43230.0,1.48179452]
[1642283525449,0.09438453,43231.0,43230.0,0.48179452]
[1642283526047,0.09438453,43231.0,43230.0,0.6457058]
[1642283526699,0.09438453,43231.0,43230.0,1.43620609]
[1642283527502,0.09438453,43231.0,43230.0,1.27229481]
[1642283528702,0.09438453,43231.0,43230.0,1.87229481]
[1642283529003,0.00120421,43242.0,43231.0,2.2]
[1642283529203,0.29,43246.0,43232.0,0.24091356]
[1642283529402,0.0001719,43241.0,43232.0,0.29271356]
[1642283529604,0.00024066,43245.0,43237.0,0.35]
[1642283529802,0.00015471,43240.0,43238.0,0.0518]
[1642283530002,0.00022347,43244.0,43239.0,0.86036574]
[1642283530245,0.00093397,43247.0,43239.0,0.91216574]
[1642283530451,0.00122537,43249.0,43239.0,0.91216574]
[1642283530647,0.00024066,43245.0,43239.0,0.91216574]
[1642283531046,0.00022347,43244.0,43239.0,0.91216574]
[1642283531447,0.00020628,43243.0,43239.0,0.91216574]
[1642283531846,0.057786,43248.0,43240.0,0.17112736]
[1642283531847,0.00018909,43242.0,43240.0,0.17112736]
[1642283532346,0.0001719,43241.0,43240.0,0.17112736]
[1642283532748,0.0001719,43241.0,43240.0,0.77112736]
[1642283533249,0.0001119,43241.0,43240.0,0.77112736]
[1642283533449,0.05383201,43248.0,43241.0,0.95]
[1642283533651,0.23,43241.0,43239.0,0.91216574]
[1642283534698,0.23,43241.0,43239.0,0.71423061]
[1642283535198,0.23,43241.0,43239.0,0.44797957]
[1642283536399,0.23,43241.0,43240.0,0.16993467]
[1642283537601,0.23,43241.0,43240.0,0.56993467]
[1642283537851,0.23,43241.0,43240.0,0.16993467]
[1642283538254,0.23,43241.0,43239.0,0.40205822]
[1642283538450,0.23,43241.0,43239.0,0.56925315]
[1642283538650,0.23,43241.0,43239.0,0.20399493]
[1642283538853,0.23,43241.0,43240.0,0.71805624]
[1642283539050,0.23,43241.0,43240.0,0.55]
[1642283541599,0.23,43241.0,43239.0,0.16711094]
[1642283542302,0.23,43241.0,43238.0,0.50036654]
[1642283542599,0.23,43241.0,43238.0,0.5008004]
[1642283543201,0.19731426,43241.0,43238.0,0.20083386]
[1642283543598,0.19731426,43241.0,43238.0,0.2004]
[1642283544498,0.19731426,43241.0,43239.0,0.33193414]
[1642283545099,0.19731426,43241.0,43240.0,1.42628161]
[1642283545353,0.19731426,43241.0,43240.0,0.07628161]
[1642283547755,0.19231426,43241.0,43240.0,1.32628161]
[1642283548256,0.19231426,43241.0,43240.0,0.07628161]
[1642283551218,0.19231426,43241.0,43240.0,0.24356395]
[1642283552211,0.19231426,43241.0,43240.0,0.07628161]
[1642283553552,0.15846219,43241.0,43240.0,1.62628161]
[1642283554650,0.15846219,43241.0,43240.0,0.07628161]
[1642283557503,0.15846219,43241.0,43240.0,0.82628161]
[1642283558304,0.15846219,43241.0,43240.0,1.61684276]
[1642283558608,0.15846219,43241.0,43240.0,0.86684276]
[1642283560253,0.15846219,43241.0,43240.0,0.07628161]
[1642283561556,0.15846219,43241.0,43240.0,0.62628161]
[1642283561754,0.15846219,43241.0,43240.0,0.07628161]
[1642283563558,0.13723969,43241.0,43240.0,1.72628161]
[1642283564506,0.13723969,43241.0,43240.0,0.07628161]
[1642283565302,0.13723969,43241.0,43240.0,1.05128161]
[1642283566003,0.13723969,43241.0,43240.0,0.00128161]
[1642283566407,0.13723969,43241.0,43240.0,0.40128161]
[1642283567402,0.13723969,43241.0,43240.0,1.05128161]
[1642283568250,0.13723969,43241.0,43240.0,0.40128161]
[1642283569251,0.13723969,43241.0,43240.0,0.00128161]
[1642283570953,0.13223969,43241.0,43240.0,1.85128161]
[1642283571355,0.13223969,43241.0,43240.0,0.00128161]
[1642283571903,0.13223969,43241.0,43240.0,0.24008288]
[1642283572502,0.13223969,43241.0,43240.0,0.00128161]
[1642283573707,0.11900713,43241.0,43240.0,1.25128161]
[1642283574107,0.11900713,43241.0,43240.0,0.00128161]
[1642283574312,0.11900713,43241.0,43240.0,0.50128161]
[1642283575555,0.11900713,43241.0,43240.0,0.00128161]
[1642283577157,0.11900713,43241.0,43240.0,0.50128161]
[1642283577556,0.11900713,43241.0,43240.0,0.5]
[1642283580210,0.11900713,43241.0,43239.0,0.60565253]
[1642283581710,0.11900713,43241.0,43240.0,1.84945646]
[1642283582309,0.11900713,43241.0,43240.0,0.04945646]
[1642283582761,0.11900713,43241.0,43240.0,0.28825773]
[1642283583263,0.11900713,43241.0,43240.0,0.04945646]
[1642283583862,0.06900713,43241.0,43240.0,1.89945646]
[1642283584364,0.05709783,43241.0,43240.0,1.89945646]
[1642283584767,0.05709783,43241.0,43240.0,2.13825773]
[1642283584963,0.05709783,43241.0,43240.0,0.28825773]
[1642283585162,0.05709783,43241.0,43240.0,0.68825773]
[1642283585362,0.05709783,43241.0,43240.0,0.63880127]
[1642283585764,0.05709783,43241.0,43240.0,0.4]
[1642283586167,8.595e-05,43246.0,43240.0,0.4]
[1642283586602,6.876e-05,43245.0,43240.0,0.4]
[1642283587002,0.14814235,43247.0,43240.0,0.40043382]
[1642283587202,0.14814235,43247.0,43244.0,0.79128827]
[1642283587703,0.00215947,43249.0,43244.0,0.79128827]
[1642283587704,0.0009341,43249.0,43247.0,0.1998281]
[1642283587904,0.057779,43253.0,43247.0,0.1998281]
[1642283588104,0.55706651,43256.0,43247.0,0.0518]
[1642283588105,0.00093415,43250.0,43247.0,0.0518]
[1642283588703,0.00093415,43250.0,43249.0,2.77609674]
[1642283589305,0.00102009,43252.0,43249.0,2.77609674]
[1642283589705,6.876e-05,43251.0,43249.0,2.77609674]
[1642283590557,6.876e-05,43251.0,43250.0,1.92724812]
[1642283591155,6.876e-05,43251.0,43250.0,0.86826344]
[1642283591755,6.876e-05,43251.0,43239.0,1.3489]
[1642283591756,0.17038508,43251.0,43248.0,0.79101532]
[1642283591955,0.00125258,43249.0,43248.0,0.60281532]
[1642283592155,0.05932263,43249.0,43242.0,0.88681007]
[1642283592355,0.00129006,43244.0,43242.0,0.88681007]
[1642283592558,2.07749,43243.0,43242.0,0.42434507]
[1642283592757,2.73745362,43243.0,43235.0,0.42434507]
[1642283592956,0.44792871,43236.0,43235.0,0.42434507]
[1642283593156,0.49972871,43236.0,43235.0,0.42434507]
[1642283593456,0.49972871,43236.0,43235.0,0.00020628]
[1642283593655,0.87541871,43236.0,43235.0,0.00020628]
[1642283593857,1.19610045,43236.0,43231.0,0.00027504]
[1642283594113,0.37569,43235.0,43231.0,0.00027504]
[1642283594314,0.8,43233.0,43227.0,0.00044497]
[1642283594511,0.42749,43232.0,43227.0,0.00044497]
[1642283594712,0.15355688,43231.0,43227.0,0.00051373]
[1642283594912,0.0518,43231.0,43227.0,0.00051373]
[1642283595115,0.0518,43231.0,43227.0,6.876e-05]
[1642283596111,0.2818,43231.0,43227.0,6.876e-05]
[1642283600764,0.23,43231.0,43229.0,0.24218207]
[1642283601364,0.23,43231.0,43227.0,6.876e-05]
[1642283601606,0.22954,43231.0,43227.0,6.876e-05]
[1642283602807,0.22954,43231.0,43228.0,0.18862671]
[1642283604810,0.22954,43231.0,43227.0,6.876e-05]
[1642283614459,0.22954,43231.0,43229.0,0.35]
[1642283614660,0.22954,43231.0,43229.0,0.45]
[1642283614859,0.22954,43231.0,43227.0,0.12872159]
[1642283615260,0.22954,43231.0,43229.0,0.35]
[1642283617216,0.22954,43231.0,43229.0,0.69334855]
[1642283617418,0.132901,43231.0,43230.0,2.0847985]
[1642283617616,0.00093428,43232.0,43231.0,1.5170271]
[1642283617816,0.00093428,43232.0,43231.0,1.39428635]
[1642283618018,0.4436977,43240.0,43231.0,1.32725925]
[1642283618218,0.4436977,43240.0,43235.0,0.05906573]
[1642283618521,0.00013752,43239.0,43236.0,0.19178757]
[1642283618917,0.00012033,43238.0,43236.0,0.19178757]
[1642283619218,0.057797,43241.0,43236.0,0.19178757]
[1642283619219,0.00010314,43237.0,43236.0,0.19178757]
[1642283621960,0.00010314,43237.0,43236.0,0.35934443]
[1642283622161,0.00010314,43237.0,43236.0,0.75589196]
[1642283622763,0.00010314,43237.0,43236.0,1.25589196]
[1642283622962,0.00010314,43237.0,43236.0,1.60589196]
[1642283623162,0.00010314,43237.0,43236.0,1.70589196]
[1642283623765,0.00010314,43237.0,43236.0,3.05589196]
[1642283624214,0.00093424,43239.0,43237.0,2.09982396]
[1642283624411,0.00093424,43239.0,43238.0,2.63056027]
[1642283624613,0.00093424,43239.0,43238.0,2.73056027]
[1642283625211,0.0001719,43247.0,43238.0,2.73056027]
[1642283625412,0.00093422,43241.0,43238.0,2.73056027]
[1642283625613,0.00093422,43241.0,43239.0,0.20247247]
[1642283625814,0.00015471,43246.0,43241.0,1.24898974]
[1642283626216,0.23,43247.0,43245.0,0.32984647]
[1642283626616,0.00015471,43246.0,43245.0,0.32984647]
[1642283628860,0.00015471,43246.0,43239.0,0.20247247]
[1642283629063,0.00015471,43246.0,43240.0,0.17040082]
[1642283629260,0.00013752,43245.0,43240.0,0.17040082]
[1642283629660,0.00012033,43244.0,43240.0,0.17040082]
[1642283630061,0.00124517,43249.0,43244.0,0.1998866]
[1642283630461,6.876e-05,43247.0,43244.0,0.1998866]
[1642283631064,6.876e-05,43247.0,43242.0,0.29209865]
[1642283631716,0.42844454,43251.0,43243.0,0.1690207]
[1642283631912,0.42844454,43251.0,43243.0,6.876e-05]
[1642283632915,0.0500341,43251.0,43243.0,6.876e-05]
[1642283633116,0.0500341,43251.0,43247.0,0.1912485]
[1642283635463,0.0500341,43251.0,43243.0,6.876e-05]
[1642283635662,0.0500341,43251.0,43243.0,0.16745277]
[1642283636266,0.00093414,43250.0,43243.0,0.16745277]
[1642283636667,0.00093414,43250.0,43244.0,0.18810655]
[1642283637266,0.0500341,43251.0,43244.0,0.18810655]
[1642283637467,0.00093414,43250.0,43244.0,0.18810655]
[1642283638468,0.0500341,43251.0,43244.0,0.18810655]
[1642283638668,0.00093414,43250.0,43244.0,0.18810655]
[1642283639117,0.00093414,43250.0,43244.0,0.18310655]
[1642283640818,0.20041273,43251.0,43244.0,0.18310655]
[1642283641019,0.00093414,43250.0,43244.0,0.18310655]
[1642283641918,0.0500341,43251.0,43244.0,0.18310655]
[1642283642123,0.00093414,43250.0,43244.0,0.18310655]
[1642283642763,0.00093414,43250.0,43244.0,0.53310655]
[1642283642963,0.00093414,43250.0,43249.0,1.10167673]
[1642283643163,0.38914083,43256.0,43249.0,1.10167673]
[1642283643164,0.057779,43256.0,43249.0,1.10167673]
[1642283643364,0.00093414,43250.0,43249.0,1.10167673]
[1642283644466,0.00013752,43255.0,43251.0,0.18220214]
[1642283644671,0.00093414,43252.0,43251.0,0.18220214]
[1642283645067,0.00102009,43252.0,43251.0,0.18220214]
[1642283645669,8.595e-05,43252.0,43251.0,0.18220214]
[1642283646814,8.595e-05,43252.0,43249.0,0.25167673]
[1642283647217,6.876e-05,43251.0,43249.0,0.25167673]
[1642283647415,6.876e-05,43251.0,43250.0,2.2018]
[1642283647615,0.00010314,43253.0,43250.0,2.2018]
[1642283647814,0.00093412,43254.0,43251.0,1.44991784]
[1642283648016,0.46157394,43259.0,43251.0,1.44991784]
[1642283648217,0.00083027,43254.0,43251.0,1.44991784]
[1642283648516,0.00083027,43254.0,43252.0,0.57036272]
[1642283649119,0.00012033,43258.0,43252.0,0.57036272]
[1642283649518,0.00083026,43255.0,43252.0,0.57036272]
[1642283650370,0.00010314,43257.0,43252.0,0.57036272]
[1642283650569,0.00083025,43256.0,43252.0,0.57036272]
[1642283650772,0.0009162,43256.0,43252.0,0.57036272]
[1642283650971,6.876e-05,43255.0,43252.0,0.57036272]
[1642283653772,0.38923857,43255.0,43252.0,0.23288764]
[1642283655017,0.38923857,43255.0,43253.0,0.27169003]
[1642283655818,6.876e-05,43255.0,43253.0,0.27169003]
[1642283668065,6.876e-05,43255.0,43253.0,0.26669003]
[1642283676931,6.876e-05,43255.0,43254.0,2.3323626]
[1642283677130,6.876e-05,43255.0,43254.0,2.25748032]
[1642283677531,0.00093411,43256.0,43255.0,2.19984908]
[1642283677731,0.00093411,43256.0,43255.0,2.25286207]
[1642283677930,0.29918152,43270.0,43255.0,2.15301299]
[1642283678136,0.00373582,43264.0,43259.0,0.35]
[1642283678332,0.00373582,43264.0,43263.0,0.91987967]
[1642283678531,0.00373582,43264.0,43263.0,0.30815629]
[1642283678730,0.00373582,43264.0,43263.0,0.11987967]
[1642283679330,0.6538201,43270.0,43263.0,0.11987967]
[1642283679331,0.00093404,43266.0,43263.0,0.11987967]
[1642283679631,0.00093404,43266.0,43263.0,0.37947539]
[1642283680032,0.00093404,43266.0,43263.0,0.11987967]
[1642283680468,0.057764,43267.0,43263.0,0.11987967]
[1642283680670,0.05869803,43267.0,43263.0,0.11987967]
[1642283680865,6.876e-05,43266.0,43263.0,0.11987967]
[1642283681065,6.876e-05,43266.0,43263.0,0.37422398]
[1642283682066,6.876e-05,43266.0,43265.0,0.00128922]
[1642283682264,6.876e-05,43266.0,43263.0,0.54306261]
[1642283683468,6.876e-05,43266.0,43263.0,0.37422398]
[1642283683765,6.876e-05,43266.0,43263.0,0.11987967]
[1642283685621,0.11560876,43266.0,43263.0,0.11987967]
[1642283685828,0.37569,43265.0,43263.0,0.11987967]
[1642283686019,2.18690924,43264.0,43263.0,0.11987967]
[1642283686220,2.87199332,43264.0,43263.0,0.11987967]
[1642283686422,0.87199332,43264.0,43263.0,0.11987967]
[1642283688276,0.92379332,43264.0,43263.0,0.11987967]
[1642283688480,1.57109332,43264.0,43263.0,0.11987967]
[1642283688877,1.57109332,43264.0,43249.0,1.12976]
[1642283688878,0.057783,43260.0,43249.0,1.12976]
[1642283689077,0.35498314,43255.0,43249.0,0.20046]
[1642283689277,0.0518,43254.0,43251.0,0.19253862]
[1642283689676,0.0518,43254.0,43252.0,0.0001719]
[1642283690981,0.0518,43254.0,43250.0,0.00020628]
[1642283691513,0.05273412,43254.0,43250.0,0.00020628]
[1642283692318,0.05273412,43254.0,43248.0,0.00024066]
[1642283692515,0.0518,43254.0,43248.0,0.00024066]
[1642283692716,0.05273412,43254.0,43248.0,0.00024066]
[1642283693015,0.05273412,43254.0,43247.0,0.26833777]
[1642283693316,0.05273412,43254.0,43248.0,0.00024066]
[1642283693716,0.0518,43254.0,43252.0,0.24830559]
[1642283693918,0.00093413,43253.0,43252.0,0.24830559]
[1642283694117,0.05273413,43253.0,43252.0,0.24830559]
[1642283694718,0.05273413,43253.0,43252.0,0.20330559]
[1642283695017,0.0518,43253.0,43252.0,0.20330559]
[1642283695467,0.0518,43253.0,43247.0,0.26833777]
[1642283695867,0.0518,43253.0,43248.0,0.00024066]
[1642283696270,0.00093414,43252.0,43248.0,0.00024066]
[1642283696467,0.0518,43251.0,43248.0,0.00024066]
[1642283696668,0.0518,43251.0,43249.0,0.20754071]
[1642283697070,0.0518,43251.0,43249.0,0.20038099]
[1642283697470,0.2818,43251.0,43249.0,0.20038099]
[1642283700320,0.23,43251.0,43249.0,0.20038099]
[1642283700716,0.23,43251.0,43249.0,0.40066099]
[1642283701219,0.23,43251.0,43250.0,1.37]
[1642283702318,0.00373581,43261.0,43257.0,0.20103239]
[1642283702521,0.0518,43260.0,43257.0,0.20103239]
[1642283702761,0.0519719,43260.0,43257.0,0.20103239]
[1642283702961,0.00015471,43259.0,43257.0,0.20103239]
[1642283703162,0.057772,43262.0,43260.0,0.11984529]
[1642283703363,0.0518,43261.0,43260.0,0.11984529]
[1642283703561,0.057772,43262.0,43260.0,0.11984529]
[1642283704765,0.057772,43262.0,43260.0,0.07514529]
[1642283705167,0.057767,43264.0,43260.0,0.07514529]
[1642283705768,0.05838021,43264.0,43260.0,0.07514529]
[1642283705969,0.00061321,43264.0,43260.0,0.07514529]
[1642283706614,0.00061321,43264.0,43258.0,0.73266347]
[1642283706811,0.00010314,43265.0,43258.0,0.73266347]
[1642283707013,0.00093405,43264.0,43258.0,0.73266347]
[1642283707215,0.00102,43264.0,43261.0,0.00128343]
[1642283707414,6.876e-05,43263.0,43261.0,0.00128343]
[1642283707615,6.876e-05,43263.0,43262.0,0.00122852]
[1642283707814,6.876e-05,43263.0,43262.0,2.20302852]
[1642283708218,6.876e-05,43263.0,43262.0,2.30302852]
[1642283708416,0.22006876,43264.0,43263.0,2.15]
[1642283708615,0.00093404,43265.0,43263.0,2.2]
[1642283708817,0.00093404,43265.0,43264.0,2.25200235]
[1642283709025,0.00093404,43265.0,43264.0,0.30200235]
[1642283709218,0.34832574,43273.0,43264.0,0.20200235]
[1642283709419,0.35206129,43273.0,43268.0,0.29728714]
[1642283709619,0.00012033,43270.0,43268.0,0.29728714]
[1642283710021,0.00010314,43269.0,43268.0,0.29728714]
[1642283713185,0.00010314,43269.0,43268.0,0.47141667]
[1642283713787,0.00010314,43269.0,43268.0,1.67261873]
[1642283714021,4.314e-05,43269.0,43268.0,2.72261873]
[1642283714227,4.314e-05,43269.0,43268.0,2.42533159]
[1642283714722,4.314e-05,43269.0,43268.0,1.37533159]
[1642283714922,4.314e-05,43269.0,43268.0,1.27533159]
[1642283715521,4.314e-05,43269.0,43268.0,1.10120206]
[1642283716424,4.314e-05,43269.0,43268.0,1.35482784]
[1642283716621,4.314e-05,43269.0,43268.0,1.90482784]
[1642283717022,4.314e-05,43269.0,43268.0,1.6771793]
[1642283718068,0.30851257,43279.0,43269.0,2.449]
[1642283718267,0.30851257,43279.0,43270.0,0.18175143]
[1642283718468,0.00012033,43276.0,43270.0,0.18175143]
[1642283718869,0.00010314,43275.0,43270.0,0.18175143]
[1642283719069,0.00010314,43275.0,43272.0,0.35]
[1642283719272,8.595e-05,43274.0,43273.0,0.17642013]
[1642283719474,0.057743,43283.0,43275.0,0.19986313]
[1642283719873,0.057743,43283.0,43274.0,2.37006784]
[1642283719874,8.595e-05,43279.0,43274.0,2.37006784]
[1642283720076,8.595e-05,43279.0,43275.0,0.16886769]
[1642283720376,6.876e-05,43278.0,43275.0,0.26531613]
[1642283720574,6.876e-05,43278.0,43275.0,0.43408165]
[1642283721075,6.876e-05,43278.0,43277.0,0.00120064]
[1642283721276,0.2886,43287.0,43278.0,0.19989437]
[1642283721520,0.001217,43293.0,43279.0,2.3274347]
[1642283721521,0.00244285,43290.0,43279.0,2.3274347]
[1642283721920,0.00244285,43290.0,43279.0,2.4274347]
[1642283722320,0.06017685,43290.0,43279.0,0.1]
[1642283722519,0.057734,43290.0,43279.0,1.05]
[1642283722719,0.00093391,43282.0,43279.0,1.05]
[1642283723523,0.00093391,43282.0,43279.0,2.6]
[1642283723724,1.191728,43294.0,43279.0,2.60127006]
[1642283723922,0.00093391,43282.0,43280.0,2.14946467]
[1642283724121,0.00093391,43282.0,43280.0,2.24946467]
[1642283724523,0.00093391,43282.0,43281.0,2.20306212]
[1642283725022,6.876e-05,43282.0,43281.0,2.30306212]
[1642283726273,0.0009339,43284.0,43282.0,2.60042885]
[1642283726473,0.0009339,43284.0,43283.0,3.03319763]
[1642283726672,0.0009339,43284.0,43283.0,3.13319763]
[1642283727277,0.00020629,43294.0,43292.0,0.30440125]
[1642283727477,0.00020629,43294.0,43293.0,1.70765645]
[1642283727675,0.0005336,43295.0,43284.0,0.3017]
[1642283727874,0.0005336,43295.0,43284.0,0.0518]
[1642283728174,0.0001891,43293.0,43284.0,0.1518]
[1642283728373,0.0001891,43293.0,43284.0,0.32391136]
[1642283728574,0.00093384,43291.0,43287.0,0.0012102]
[1642283728775,0.00093384,43291.0,43286.0,0.22248047]
[1642283729015,0.00013753,43290.0,43286.0,0.22248047]
[1642283729416,0.44317282,43288.0,43286.0,0.22248047]
[1642283729821,8.596e-05,43287.0,43286.0,0.22248047]
[1642283730218,0.44317282,43288.0,43287.0,1.19990995]
[1642283730517,0.44317282,43288.0,43287.0,0.19990995]
[1642283730718,0.44317282,43288.0,43286.0,6e-05]
[1642283730919,0.15943084,43287.0,43286.0,6e-05]
[1642283731322,0.58692084,43287.0,43286.0,6e-05]
[1642283731518,2.53692084,43287.0,43286.0,6e-05]
[1642283732424,0.58692084,43287.0,43286.0,6e-05]
[1642283732867,0.42749,43287.0,43286.0,6e-05]
[1642283733068,0.42569,43287.0,43286.0,6e-05]
[1642283733468,1.32569,43287.0,43286.0,6e-05]
[1642283734171,0.42569,43287.0,43286.0,6e-05]
[1642283736372,1.42569,43287.0,43286.0,6e-05]
[1642283736618,1.52569,43287.0,43286.0,6e-05]
[1642283737015,0.52569,43287.0,43286.0,6e-05]
[1642283737414,1.12569,43287.0,43286.0,6e-05]
[1642283737814,0.52569,43287.0,43286.0,6e-05]
[1642283738017,0.42569,43287.0,43286.0,6e-05]
[1642283738417,0.65569,43287.0,43286.0,6e-05]
[1642283739417,1.60569,43287.0,43286.0,6e-05]
[1642283739816,0.65569,43287.0,43286.0,6e-05]
[1642283742371,0.65263078,43287.0,43286.0,6e-05]
[1642283743774,0.64763078,43287.0,43286.0,6e-05]
[1642283745422,0.64263078,43287.0,43286.0,6e-05]
[1642283746420,0.59083078,43287.0,43286.0,6e-05]
[1642283746822,0.58520068,43287.0,43286.0,6e-05]
[1642283747425,0.58520068,43287.0,43286.0,0.24896575]
[1642283747625,0.23,43287.0,43286.0,0.24896575]
[1642283748269,0.225,43287.0,43286.0,0.24896575]
[1642283749171,0.600673,43287.0,43286.0,0.24896575]
[1642283750072,0.600673,43287.0,43286.0,6e-05]
[1642283752219,0.595673,43287.0,43286.0,6e-05]
[1642283754821,0.590673,43287.0,43286.0,6e-05]
[1642283758773,0.215,43287.0,43286.0,6e-05]
[1642283759224,0.20709803,43287.0,43286.0,6e-05]
[1642283759424,0.20709803,43287.0,43286.0,1.35006]
[1642283759625,0.20709803,43287.0,43286.0,1.370465]
[1642283760024,0.20709803,43287.0,43286.0,0.020465]
[1642283760229,0.20709803,43287.0,43286.0,0.50006]
[1642283760427,0.20709803,43287.0,43286.0,0.86581184]
[1642283760627,0.00709803,43287.0,43286.0,2.63621684]
[1642283760828,0.00709803,43287.0,43286.0,2.53621684]
[1642283761031,0.00093386,43289.0,43287.0,0.17530197]
[1642283761328,0.00093386,43289.0,43286.0,2.53621684]
[1642283761329,0.00093386,43289.0,43288.0,2.170402]
[1642283761728,0.00093386,43289.0,43288.0,0.28540823]
[1642283762130,0.00012033,43294.0,43289.0,0.24868069]
[1642283762330,0.00093384,43291.0,43289.0,0.24868069]
[1642283762768,0.00010314,43293.0,43291.0,1.29896813]
[1642283762966,0.00010314,43293.0,43292.0,1.370394]
[1642283763170,0.0005336,43295.0,43292.0,0.020394]
[1642283763366,0.0005336,43295.0,43290.0,0.05194577]
[1642283763570,0.00012033,43294.0,43290.0,0.05194577]
[1642283763767,0.00012033,43294.0,43291.0,0.020393]
[1642283763967,0.00010314,43293.0,43292.0,1.42927638]
[1642283764169,0.00010314,43293.0,43292.0,2.1716548]
[1642283764568,0.0005336,43295.0,43293.0,1.89986499]
[1642283764770,0.0005336,43295.0,43294.0,2.17039]
[1642283766274,0.0005992,43297.0,43295.0,2.00457094]
[1642283766519,0.0005992,43297.0,43296.0,2.25257639]
[1642283766920,6.876e-05,43297.0,43296.0,2.25257639]
[1642283768022,1.09438174,43311.0,43297.0,2.09986263]
[1642283768223,0.00093378,43299.0,43298.0,0.18498744]
[1642283768422,0.00093378,43299.0,43298.0,1.970374]
[1642283769223,0.00012033,43304.0,43298.0,1.970374]
[1642283769422,0.23,43299.0,43298.0,1.95]
[1642283769622,0.03003737,43299.0,43298.0,2.36705524]
[1642283770021,0.02503737,43299.0,43298.0,2.36705524]
[1642283770566,0.00093376,43301.0,43299.0,0.0932]
[1642283770766,0.00093376,43301.0,43300.0,2.24473317]
[1642283771166,0.00373449,43307.0,43301.0,1.69899748]
[1642283771373,0.00373449,43307.0,43302.0,0.020371]
[1642283771568,8.595e-05,43306.0,43304.0,0.24773562]
[1642283771766,8.595e-05,43306.0,43305.0,2.070367]
[1642283771967,0.0005297,43314.0,43305.0,2.070367]
[1642283771968,0.0005297,43314.0,43305.0,0.020367]
[1642283772166,0.0005297,43314.0,43304.0,0.24773562]
[1642283772167,0.375673,43313.0,43308.0,0.22767429]
[1642283772366,0.0001719,43311.0,43308.0,0.22767429]
[1642283772768,0.0005297,43314.0,43308.0,0.22767429]
[1642283772769,0.00015471,43310.0,43308.0,0.22767429]
[1642283773168,0.00013752,43309.0,43308.0,0.22767429]
[1642283773368,0.00013752,43309.0,43308.0,2.87194261]
[1642283773571,0.00013752,43309.0,43308.0,2.87318964]
[1642283773768,0.00013752,43309.0,43308.0,2.97318964]
[1642283774026,0.00013752,43309.0,43308.0,4.69278607]
[1642283774227,0.0005297,43314.0,43312.0,0.34299884]
[1642283774523,0.0005297,43314.0,43313.0,2.17163982]
[1642283774824,0.00061565,43314.0,43313.0,2.17163982]
[1642283775023,0.00061565,43314.0,43313.0,2.45134137]
[1642283775823,0.00061565,43314.0,43313.0,0.30134137]
[1642283776025,0.00061565,43314.0,43313.0,1.17279239]
[1642283776224,0.00093365,43316.0,43314.0,1.54553695]
[1642283776423,0.00255551,43323.0,43315.0,1.820347]